fUSD/lending_fUSD_20240122
["ID","MTS","AMOUNT","RATE_DAILY","PERIOD"]
[312478791,1705915849206,-500.0,0.0003726,2]
[312478792,1705915849215,-1677.98,0.0003726,2]
[312478793,1705915849224,-603.17,0.0003726,2]
[312478794,1705915849234,-637.59,0.0003726,2]
[312478795,1705915849243,-500.0,0.0003726,2]
[312478796,1705915849253,-500.0,0.0003726,2]
[312478797,1705915849262,-2528.72,0.0003726,2]
[312478798,1705915849272,-904.26,0.0003726,2]
[312478799,1705915849282,-1514.68,0.0003726,2]
[312478800,1705915849291,-1253.37,0.0003726,2]
[312478801,1705915849301,-500.0,0.0003726,2]
[312478802,1705915849310,-5543.27,0.0003726,2]
[312478803,1705915849319,-500.0,0.0003726,2]
[312478804,1705915849328,-1826.32,0.0003726,2]
[312478805,1705915849338,-591.19,0.0003726,2]
[312478806,1705915849347,-1098.13,0.0003726,2]
[312478807,1705915849357,-500.0,0.0003726,2]
[312478808,1705915849366,-1502.05,0.0003726,2]
[312478809,1705915849375,-500.0,0.0003726,2]
[312478810,1705915849385,-629.07847618,0.0003726,2]
[312478811,1705915849394,-667.64,0.0003726,2]
[312478812,1705915849407,-2249.97,0.0003726,2]
[312478813,1705915849417,-500.0,0.0003726,2]
[312478814,1705915849426,-909.26,0.0003726,2]
[312478815,1705915849436,-576.25,0.0003726,2]
[312478816,1705915849446,-1096.44,0.0003726,2]
[312478817,1705915849455,-500.0,0.0003726,2]
[312478818,1705915849464,-500.0,0.0003726,2]
[312478819,1705915849474,-500.0,0.0003726,2]
[312478820,1705915849483,-2992.77,0.0003726,2]
[312478821,1705915849493,-500.0,0.0003726,2]
[312478822,1705915849502,-500.0,0.0003726,2]
[312478823,1705915849511,-1374.15,0.0003726,2]
[312478824,1705915849520,-4191.15,0.0003726,2]
[312478825,1705915849531,-736.69,0.0003726,2]
[312478826,1705915849540,-500.0,0.0003726,2]
[312478827,1705915849549,-905.91,0.0003726,2]
[312478828,1705915849558,-500.0,0.0003726,2]
[312478829,1705915849568,-1429.29,0.0003726,2]
[312478830,1705915849577,-6662.39,0.0003726,2]
[312478831,1705915849586,-500.0,0.0003726,2]
[312478832,1705915849595,-1741.87,0.0003726,2]
[312478833,1705915849604,-2004.97,0.0003726,2]
[312478834,1705915849614,-782.64,0.0003726,2]
[312478835,1705915849622,-2090.33,0.0003726,2]
[312478836,1705915849631,-500.0,0.0003726,2]
[312478837,1705915849641,-1844.47,0.0003726,2]
[312478838,1705915849650,-500.0,0.0003726,2]
[312478839,1705915849659,-2494.81,0.0003726,2]
[312478840,1705915849668,-500.0,0.0003726,2]
[312478841,1705915849677,-1070.11,0.0003726,2]
[312478842,1705915849686,-1000.0,0.0003726,2]
[312478843,1705915849695,-1073.06,0.0003726,2]
[312478844,1705915849704,-1039.12,0.0003726,2]
[312478845,1705915849713,-623.96977437,0.0003726,2]
[312478846,1705915849722,-1444.62,0.0003726,2]
[312478847,1705915849731,-1648.03,0.0003726,2]
[312478848,1705915849741,-520.06739032,0.0003726,2]
[312478849,1705915849750,-1757.07,0.0003726,2]
[312478850,1705915849963,-609.86900215,0.0003726,2]
[312478851,1705915849974,-14230.91,0.0003726,2]
[312478852,1705915849983,-500.0,0.0003726,2]
[312478853,1705915849993,-500.0,0.0003726,2]
[312478854,1705915850002,-500.0,0.0003726,2]
[312478855,1705915850011,-500.0,0.0003726,2]
[312478856,1705915850020,-500.0,0.0003726,2]
[312478857,1705915850032,-997.6,0.0003726,2]
[312478858,1705915850041,-2023.97,0.0003726,2]
[312478859,1705915850051,-505.56933458,0.0003726,2]
[312478860,1705915850061,-1014.25,0.0003726,2]
[312478861,1705915850070,-500.0,0.0003726,2]
[312478862,1705915850079,-500.0,0.0003726,2]
[312478863,1705915850088,-500.0,0.0003726,2]
[312478864,1705915850098,-1282.73,0.0003726,2]
[312478865,1705915850107,-500.0,0.0003726,2]
[312478866,1705915850116,-277.15,0.0003726,2]
[312478867,1705915850126,-3018.81,0.0003726,2]
[312478868,1705915850136,-2041.86,0.0003726,2]
[312478869,1705915850145,-1550.18,0.0003726,2]
[312478870,1705915850154,-500.0,0.0003726,2]
[312478871,1705915850163,-500.0,0.0003726,2]
[312478872,1705915850173,-1234.88,0.0003726,2]
[312478873,1705915850182,-1458.78,0.0003726,2]
[312478874,1705915850191,-1169.86,0.0003726,2]
[312478875,1705915850200,-548.63,0.0003726,2]
[312478876,1705915850210,-1143.21,0.0003726,2]
[312478877,1705915850220,-500.0,0.0003726,2]
[312478878,1705915850229,-739.33,0.0003726,2]
[312478879,1705915850239,-500.0,0.0003726,2]
[312478880,1705915850249,-500.0,0.0003726,2]
[312478881,1705915850258,-2002.62,0.0003726,2]
[312478882,1705915850268,-500.0,0.0003726,2]
[312478883,1705915850277,-812.19,0.0003726,2]
[312478884,1705915850286,-500.0,0.0003726,2]
[312478885,1705915850296,-500.0,0.0003726,2]
[312478886,1705915850305,-1782.97,0.0003726,2]
[312478887,1705915850314,-1358.91,0.0003726,2]
[312478888,1705915850324,-958.41,0.0003726,2]
[312478889,1705915850333,-3891.31,0.0003726,2]
[312478890,1705915850342,-683.99,0.0003726,2]
[312478891,1705915850351,-530.01,0.0003726,2]
[312478892,1705915850361,-500.0,0.0003726,2]
[312478893,1705915850370,-500.0,0.0003726,2]
[312478894,1705915850379,-2384.4,0.0003726,2]
[312478895,1705915850388,-500.0,0.0003726,2]
[312478896,1705915850397,-778.27,0.0003726,2]
[312478897,1705915850407,-500.0,0.0003726,2]
[312478898,1705915850419,-1011.02,0.0003726,2]
[312478899,1705915850428,-500.0,0.0003726,2]
[312478900,1705915850437,-1108.38,0.0003726,5]
[312478901,1705915850447,-598.56,0.0003726,2]
[312478902,1705915850456,-938.55,0.0003726,2]
[312478903,1705915850466,-2277.83,0.0003726,2]
[312478904,1705915850475,-500.0,0.0003726,2]
[312478905,1705915850484,-511.01779795,0.0003726,2]
[312478906,1705915850497,-500.0,0.0003726,2]
[312478907,1705915850508,-500.0,0.0003726,2]
[312478908,1705915850517,-1775.85,0.0003726,2]
[312478909,1705915850527,-993.95,0.0003726,2]
[312478910,1705915850538,-1521.44,0.0003726,2]
[312478911,1705915850548,-779.38,0.0003726,2]
[312478912,1705915850558,-500.0,0.0003726,2]
[312478913,1705915850568,-772.07,0.0003726,2]
[312478914,1705915850577,-500.0,0.0003726,2]
[312478915,1705915850588,-2727.77,0.0003726,2]
[312478916,1705915850597,-5930.24,0.0003726,2]
[312478917,1705915850607,-500.0,0.0003726,2]
[312478918,1705915850616,-2407.18,0.0003726,2]
[312478919,1705915850626,-964.38,0.0003726,2]
[312478920,1705915850636,-500.0,0.0003726,2]
[312478921,1705915850646,-500.0,0.0003726,2]
[312478922,1705915850655,-1384.44,0.0003726,2]
[312478923,1705915850664,-675.15,0.0003726,2]
[312478924,1705915850673,-2518.95,0.0003726,2]
[312478925,1705915850683,-500.0,0.0003726,2]
[312478926,1705915850693,-810.16,0.0003726,2]
[312478927,1705915850702,-855.92,0.0003726,2]
[312478928,1705915850712,-2692.41,0.0003726,2]
[312478929,1705915850722,-500.0,0.0003726,2]
[312478930,1705915850731,-3468.67,0.0003726,2]
[312478931,1705915850741,-3896.44,0.0003726,2]
[312478932,1705915850751,-561.05,0.0003726,2]
[312478933,1705915850761,-500.0,0.0003726,2]
[312478934,1705915850771,-1198.52,0.0003726,2]
[312478935,1705915850781,-1369.86,0.0003726,2]
[312478936,1705915850791,-558.19,0.0003726,2]
[312478937,1705915850801,-1984.08,0.0003726,2]
[312478938,1705915850811,-444.85024709,0.0003726,2]
[312478939,1705915850821,-574.77102192,0.0003726,2]
[312478940,1705915850830,-500.0,0.0003726,2]
[312478941,1705915850839,-1039.58,0.0003726,2]
[312478942,1705915850850,-2088.02,0.0003726,2]
[312478943,1705915850859,-200.0,0.0003726,2]
[312478944,1705915850869,-14718.17,0.0003726,2]
[312478945,1705915850879,-17929.07,0.0003726,2]
[312478946,1705915850888,-818.46,0.0003726,2]
[312478947,1705915850898,-568.71,0.0003726,2]
[312478948,1705915850907,-1730.84,0.0003726,2]
[312478949,1705915850916,-510.23,0.0003726,2]
[312478950,1705915850926,-500.0,0.0003726,2]
[312478951,1705915850935,-1771.55,0.0003726,2]
[312478952,1705915850945,-500.0,0.0003726,2]
[312478953,1705915850954,-232.45862638,0.0003726,2]
[312478954,1705915850964,-1269.74,0.0003726,2]
[312478955,1705915850973,-2721.26,0.0003726,2]
[312478956,1705915850982,-1349.66,0.0003726,2]
[312478957,1705915850992,-500.0,0.0003726,2]
[312478958,1705915851001,-1692.57,0.0003726,2]
[312478959,1705915851010,-500.0,0.0003726,2]
[312478960,1705915851019,-4978.17,0.0003726,2]
[312478961,1705915851029,-500.0,0.0003726,2]
[312478962,1705915851039,-555.61,0.0003726,2]
[312478963,1705915851049,-1481.94,0.0003726,2]
[312478964,1705915851058,-500.0,0.0003726,2]
[312478965,1705915851067,-1337.36,0.0003726,2]
[312478966,1705915851077,-7416.4,0.0003726,2]
[312478967,1705915851086,-1514.28,0.0003726,2]
[312478968,1705915851096,-3411.68,0.0003726,2]
[312478969,1705915851106,-500.0,0.0003726,2]
[312478970,1705915851115,-1701.24,0.0003726,2]
[312478971,1705915851125,-5383.83,0.0003726,2]
[312478972,1705915851135,-1348.68,0.0003726,2]
[312478973,1705915851144,-500.0,0.0003726,2]
[312478974,1705915851153,-500.0,0.0003726,2]
[312478975,1705915851163,-2301.95,0.0003726,2]
[312478976,1705915851173,-500.0,0.0003726,2]
[312478977,1705915851182,-1387.96,0.0003726,2]
[312478978,1705915851191,-500.0,0.0003726,2]
[312478979,1705915851202,-1175.65,0.0003726,2]
[312478980,1705915851212,-861.51,0.0003726,2]
[312478981,1705915851222,-1798.06,0.0003726,2]
[312478982,1705915851233,-500.0,0.0003726,2]
[312478983,1705915851242,-500.0,0.0003726,2]
[312478984,1705915851252,-1560.05,0.0003726,2]
[312478985,1705915851262,-819.04,0.0003726,2]
[312478986,1705915851271,-500.0,0.0003726,2]
[312478987,1705915851282,-500.0,0.0003726,2]
[312478988,1705915851291,-500.0,0.0003726,2]
[312478989,1705915851301,-519.5944326,0.0003726,2]
[312478990,1705915851311,-500.0,0.0003726,2]
[312478991,1705915851320,-1802.02,0.0003726,2]
[312478992,1705915851329,-2110.57,0.0003726,2]
[312478993,1705915851339,-500.0,0.0003726,2]
[312478994,1705915851348,-501.11217735,0.0003726,2]
[312478995,1705915851358,-500.0,0.0003726,2]
[312478996,1705915851367,-500.0,0.0003726,2]
[312478997,1705915851376,-500.0,0.0003726,2]
[312478998,1705915851385,-1331.23,0.0003726,2]
[312478999,1705915851395,-1101.55,0.0003726,2]
[312479000,1705915851408,-500.0,0.0003726,2]
[312479001,1705915851417,-500.0,0.0003726,2]
[312479002,1705915851427,-2381.52,0.0003726,2]
[312479003,1705915851436,-4584.17,0.0003726,2]
[312479004,1705915851447,-500.0,0.0003726,2]
[312479005,1705915851457,-1290.45,0.0003726,2]
[312479006,1705915851467,-1921.64,0.0003726,2]
[312479007,1705915851477,-500.0,0.0003726,2]
[312479008,1705915851486,-500.0,0.0003726,2]
[312479009,1705915851497,-500.0,0.0003726,2]
[312479010,1705915851506,-500.0,0.0003726,2]
[312479011,1705915851516,-3369.41,0.0003726,2]
[312479012,1705915851525,-2327.32,0.0003726,2]
[312479013,1705915851536,-1643.15,0.0003726,2]
[312479014,1705915851546,-511.51,0.0003726,2]
[312479015,1705915851555,-500.0,0.0003726,2]
[312479016,1705915851565,-500.0,0.0003726,2]
[312479017,1705915851575,-500.0,0.0003726,2]
[312479018,1705915851585,-856.69,0.0003726,2]
[312479019,1705915851598,-500.0,0.0003726,2]
[312479020,1705915851616,-500.0,0.0003726,2]
[312479021,1705915851633,-500.0,0.0003726,2]
[312479022,1705915851647,-1228.93,0.0003726,2]
[312479023,1705915851663,-513.9,0.0003726,2]
[312479024,1705915851679,-500.0,0.0003726,2]
[312479025,1705915851694,-505.91014223,0.0003726,2]
[312479026,1705915851707,-500.0,0.0003726,2]
[312479027,1705915851723,-500.0,0.0003726,2]
[312479028,1705915851738,-1222.27,0.0003726,2]
[312479029,1705915851754,-667.1,0.0003726,2]
[312479030,1705915851766,-1037.87,0.0003726,2]
[312479031,1705915851783,-2408.5,0.0003726,2]
[312479032,1705915851799,-1404.05,0.0003726,2]
[312479033,1705915851812,-500.0,0.0003726,2]
[312479034,1705915851827,-975.65,0.0003726,2]
[312479035,1705915851844,-517.55,0.0003726,2]
[312479036,1705915851862,-500.0,0.0003726,2]
[312479037,1705915851877,-500.0,0.0003726,2]
[312479038,1705915851889,-1692.07,0.0003726,2]
[312479039,1705915851901,-1180.62,0.0003726,2]
[312479040,1705915851916,-2956.02,0.0003726,2]
[312479041,1705915851930,-500.0,0.0003726,2]
[312479042,1705915851942,-1335.46,0.0003726,2]
[312479043,1705915851954,-500.0,0.0003726,2]
[312479044,1705915851967,-865.39,0.0003726,2]
[312479045,1705915851979,-2811.82,0.0003726,2]
[312479046,1705915851992,-1002.84,0.0003726,2]
[312479047,1705915852005,-2496.84616919,0.0003726,2]
[312479048,1705915852850,-541.88479081,0.0003726,2]
[312479049,1705915852862,-270.78762896,0.0003726,2]
[312479050,1705915852874,-847.26141104,0.0003726,2]
[312479051,1705915852884,-1151.32,0.0003726,2]
[312479052,1705915852893,-500.0,0.0003726,2]
[312479053,1705915852903,-1069.79,0.0003726,2]
[312479054,1705915852912,-500.0,0.0003726,2]
[312479055,1705915852921,-516.97364042,0.0003726,2]
[312479056,1705915852934,-323.88635958,0.0003726,2]
[312479057,1705915852943,-500.0,0.0003726,2]
[312479058,1705915852952,-227.52085974,0.0003726,2]
[312479059,1705915852965,-272.47914026,0.0003726,2]
[312479060,1705915852974,-500.0,0.0003726,2]
[312479061,1705915853419,-500.0,0.0003726,2]
[312479062,1705915853446,-95.32274236,0.0003726,2]
[312479063,1705915853520,-1905.14725764,0.0003726,2]
[312479064,1705915853530,-500.0,0.0003726,2]
[312479065,1705915853539,-871.49,0.0003726,2]
[312479066,1705915853548,-500.0,0.0003726,2]
[312479067,1705915853557,-2036.0,0.0003726,2]
[312479068,1705915853567,-1377.99,0.0003726,2]
[312479069,1705915853575,-500.0,0.0003726,2]
[312479070,1705915853585,-516.76567433,0.0003726,2]
[312479071,1705915853594,-120.81023761,0.0003726,2]
[312479072,1705915853605,-379.18976239,0.0003726,2]
[312479073,1705915853614,-1480.18,0.0003726,2]
[312479074,1705915853623,-500.0,0.0003726,2]
[312479075,1705915853632,-500.0,0.0003726,2]
[312479076,1705915853641,-500.0,0.0003726,2]
[312479077,1705915853650,-1849.461952,0.00037294,30]
[312479078,1705915853659,-729.21,0.00037524,2]
[312479079,1705915853668,-152.98822485,0.00037698,2]
[312479080,1705915853676,-1043.67454446,0.00037704,4]
[312479081,1705915853685,-839.242188,0.00037706,11]
[312479082,1705915853696,-5291.67511849,0.00037706,11]
[312479083,1705915853707,-4786.12628527,0.00037706,11]
[312479084,1705915853718,-3962.99477646,0.00037706,11]
[312479085,1705915853729,-1588.94284284,0.00037706,11]
[312479086,1705915853740,-7960.78361881,0.00037706,11]
[312479087,1705915853748,-1000.0,0.00037706,2]
[312479088,1705915853757,-1550.22075638,0.00037708,2]
[312479089,1705915853766,-212.395395,0.00037708,2]
[312479090,1705915853775,-210.742657,0.00037708,2]
[312479091,1705915853785,-2701.48,0.0003778,2]
[312479092,1705915853793,-4739.93562517,0.00037786,8]
[312479093,1705915853802,-599.0,0.0003779,3]
[312479094,1705915853811,-3428.43010357,0.000378,20]
[312479095,1705915853822,-668.62981186,0.000378,20]
[312479096,1705915853839,-977.2198747,0.000378,20]
[312479097,1705915853850,-655.0793876,0.000378,20]
[312479098,1705915853861,-405.00113522,0.000378,20]
[312479099,1705915853872,-283.86905598,0.000378,20]
[312479100,1705915853899,-569.85819587,0.000378,20]
[312479101,1705915853910,-266.43816103,0.000378,20]
[312479102,1705915853922,-864.39749552,0.000378,20]
[312479103,1705915853933,-5177.05066905,0.000378,20]
[312479104,1705915855172,-500.0,0.0003726,2]
[312479105,1705915855182,-460.87154158,0.00037708,2]
[312479106,1705915855192,-70520.09770004,0.000378,20]
[312479107,1705915855202,-262.44086888,0.000378,28]
[312479108,1705915855211,-193.52361759,0.00037805,4]
[312479109,1705915855221,-2625.40817211,0.00037805,2]
[312479110,1705915855230,-500.0,0.00037805,2]
[312479111,1705915855239,-1472.33451323,0.00037806,3]
[312479112,1705915855249,-502.82239968,0.00037806,2]
[312479113,1705915855259,-500.0,0.00037806,2]
[312479114,1705915855268,-500.0,0.00037806,2]
[312479115,1705915855280,-500.0,0.00037806,2]
[312479116,1705915855289,-503.91631759,0.00037806,2]
[312479117,1705915855298,-500.0,0.00037806,2]
[312479118,1705915855308,-509.48718333,0.00037806,2]
[312479119,1705915855317,-676.67213997,0.00037806,2]
[312479120,1705915855326,-500.0,0.00037806,2]
[312479121,1705915855335,-506.69826023,0.00037806,2]
[312479122,1705915855344,-572.95248036,0.00037806,2]
[312479123,1705915855354,-501.85352318,0.00037806,2]
[312479124,1705915855363,-511.92710529,0.00037806,2]
[312479125,1705915855373,-584.77,0.00037806,2]
[312479126,1705915855382,-417.22570182,0.00037806,2]
[312479127,1705915855392,-576.34065452,0.00037806,2]
[312479128,1705915855402,-500.0,0.00037806,2]
[312479129,1705915855412,-537.07046952,0.00037806,2]
[312479130,1705915855423,-518.19,0.00037806,2]
[312479131,1705915855432,-508.06393903,0.00037806,2]
[312479132,1705915855442,-500.0,0.00037806,2]
[312479133,1705915855452,-503.44076824,0.00037806,2]
[312479134,1705915855462,-500.0,0.00037806,2]
[312479135,1705915855471,-500.0,0.00037806,2]
[312479136,1705915855481,-501.4331768,0.00037806,2]
[312479137,1705915855492,-313.87311848,0.00037806,2]
[312479138,1705915855502,-500.0,0.00037806,2]
[312479139,1705915855511,-565.65,0.00037806,2]
[312479140,1705915855521,-1000.0,0.00037806,7]
[312479141,1705915855531,-500.0,0.00037806,2]
[312479142,1705915855540,-500.0,0.00037806,2]
[312479143,1705915855550,-500.0,0.00037806,2]
[312479144,1705915855559,-500.0,0.00037806,2]
[312479145,1705915855569,-500.0,0.00037806,2]
[312479146,1705915855581,-561.18766021,0.00037806,2]
[312479147,1705915855590,-500.0,0.00037806,2]
[312479148,1705915855600,-500.0,0.00037806,2]
[312479149,1705915855609,-500.0,0.00037806,2]
[312479150,1705915855618,-500.0,0.00037806,2]
[312479151,1705915855628,-500.0,0.00037806,2]
[312479152,1705915855641,-500.0,0.00037806,2]
[312479153,1705915855685,-703.65,0.00037806,2]
[312479154,1705915855694,-500.0,0.00037806,2]
[312479155,1705915855704,-500.0,0.00037806,2]
[312479156,1705915855713,-189.70028344,0.00037806,2]
[312479157,1705915855722,-500.0,0.00037806,2]
[312479158,1705915855731,-500.0,0.00037806,2]
[312479159,1705915855740,-500.0,0.00037806,2]
[312479160,1705915855750,-500.0,0.00037806,2]
[312479161,1705915855759,-500.0,0.00037806,2]
[312479162,1705915855768,-500.0,0.00037806,2]
[312479163,1705915855778,-500.0,0.00037806,2]
[312479164,1705915855789,-586.71,0.00037806,2]
[312479165,1705915855798,-500.0,0.00037806,2]
[312479166,1705915855807,-500.0,0.00037806,2]
[312479167,1705915855816,-500.0,0.00037806,2]
[312479168,1705915855825,-500.0,0.00037806,2]
[312479169,1705915855834,-500.0,0.00037806,2]
[312479170,1705915855843,-500.0,0.00037806,2]
[312479171,1705915855853,-500.0,0.00037806,2]
[312479172,1705915855862,-500.0,0.00037806,2]
[312479173,1705915855871,-500.0,0.00037806,2]
[312479174,1705915855880,-666.56,0.00037806,2]
[312479175,1705915855889,-500.0,0.00037806,2]
[312479176,1705915855899,-500.0,0.00037806,2]
[312479177,1705915855908,-500.0,0.00037806,2]
[312479178,1705915855917,-500.0,0.00037806,2]
[312479179,1705915855926,-500.0,0.00037806,2]
[312479180,1705915855935,-500.0,0.00037806,2]
[312479181,1705915855944,-500.0,0.00037806,2]
[312479182,1705915855954,-500.0,0.00037806,2]
[312479183,1705915855963,-532.49717395,0.00037806,10]
[312479184,1705915855972,-500.21707189,0.00037806,2]
[312479185,1705915855981,-507.83758692,0.00037806,2]
[312479186,1705915855991,-500.0,0.00037806,2]
[312479187,1705915856000,-525.80184889,0.00037806,2]
[312479188,1705915856009,-864.63,0.00037806,2]
[312479189,1705915856018,-925.19,0.00037806,2]
[312479190,1705915856028,-637.94,0.00037806,2]
[312479191,1705915856038,-500.0,0.00037806,2]
[312479192,1705915856047,-500.0,0.00037806,2]
[312479193,1705915856056,-500.0,0.00037806,2]
[312479194,1705915856065,-500.0,0.00037806,2]
[312479195,1705915856074,-602.59,0.00037806,2]
[312479196,1705915856084,-500.0,0.00037806,2]
[312479197,1705915856093,-618.96048862,0.00037806,2]
[312479198,1705915856103,-500.0,0.00037806,2]
[312479199,1705915856112,-542.77,0.00037806,2]
[312479200,1705915856121,-274.59838422,0.00037806,2]
[312479201,1705915856131,-300.56270373,0.00037806,2]
[312479202,1705915856140,-500.0,0.00037806,2]
[312479203,1705915856150,-500.0,0.00037806,2]
[312479204,1705915856160,-500.0,0.00037806,2]
[312479205,1705915856169,-500.0,0.00037806,2]
[312479206,1705915856179,-500.0,0.00037806,2]
[312479207,1705915856189,-500.0,0.00037806,2]
[312479208,1705915856198,-500.0,0.00037806,2]
[312479209,1705915856209,-300.0,0.00037806,2]
[312479210,1705915856219,-500.0,0.00037806,2]
[312479211,1705915856229,-500.0,0.00037806,2]
[312479212,1705915856238,-500.0,0.00037806,2]
[312479213,1705915856248,-500.0,0.00037806,2]
[312479214,1705915856257,-698.63,0.00037806,2]
[312479215,1705915856267,-500.0,0.00037806,2]
[312479216,1705915856276,-500.0,0.00037806,2]
[312479217,1705915856287,-500.0,0.00037806,2]
[312479218,1705915856297,-696.63,0.00037806,2]
[312479219,1705915856306,-500.0,0.00037806,2]
[312479220,1705915856315,-500.0,0.00037806,2]
[312479221,1705915856324,-500.0,0.00037806,2]
[312479222,1705915856334,-530.28405771,0.00037806,2]
[312479223,1705915856344,-801.85,0.00037806,2]
[312479224,1705915856353,-500.0,0.00037806,2]
[312479225,1705915856363,-561.07859853,0.00037806,2]
[312479226,1705915856372,-500.0,0.00037806,2]
[312479227,1705915856381,-861.71,0.00037806,2]
[312479228,1705915856390,-500.0,0.00037806,2]
[312479229,1705915856400,-500.0,0.00037806,2]
[312479230,1705915856409,-500.0,0.00037806,2]
[312479231,1705915856421,-500.0,0.00037806,2]
[312479232,1705915856431,-500.0,0.00037806,2]
[312479233,1705915856440,-500.0,0.00037806,2]
[312479234,1705915856450,-500.0,0.00037806,2]
[312479235,1705915856460,-578.27,0.00037806,2]
[312479236,1705915856469,-500.0,0.00037806,2]
[312479237,1705915856479,-692.12,0.00037806,2]
[312479238,1705915856489,-500.0,0.00037806,2]
[312479239,1705915856499,-500.0,0.00037806,2]
[312479240,1705915856509,-799.71,0.00037806,2]
[312479241,1705915856519,-500.0,0.00037806,2]
[312479242,1705915856528,-509.67006039,0.00037806,2]
[312479243,1705915856538,-660.79,0.00037806,2]
[312479244,1705915856547,-1295.91,0.00037806,2]
[312479245,1705915856557,-1431.5,0.00037806,2]
[312479246,1705915856567,-500.0,0.00037806,2]
[312479247,1705915856576,-500.0,0.00037806,2]
[312479248,1705915856586,-500.0,0.00037806,2]
[312479249,1705915856595,-500.0,0.00037806,2]
[312479250,1705915856605,-832.96,0.00037806,2]
[312479251,1705915856614,-1244.42,0.00037806,2]
[312479252,1705915856624,-500.0,0.00037806,2]
[312479253,1705915856633,-500.0,0.00037806,2]
[312479254,1705915856642,-500.0,0.00037806,2]
[312479255,1705915856652,-609.66418379,0.00037806,2]
[312479256,1705915856661,-500.0,0.00037806,2]
[312479257,1705915856670,-500.0,0.00037806,2]
[312479258,1705915856679,-803.33,0.00037806,2]
[312479259,1705915856689,-500.0,0.00037806,2]
[312479260,1705915856698,-500.0,0.00037806,2]
[312479261,1705915856707,-660.56,0.00037806,2]
[312479262,1705915856717,-627.62,0.00037806,2]
[312479263,1705915856726,-588.0,0.00037806,2]
[312479264,1705915856735,-500.0,0.00037806,2]
[312479265,1705915856745,-764.59,0.00037806,2]
[312479266,1705915856754,-500.0,0.00037806,2]
[312479267,1705915856763,-500.0,0.00037806,2]
[312479268,1705915856773,-583.97,0.00037806,2]
[312479269,1705915856782,-500.0,0.00037806,2]
[312479270,1705915856792,-500.0,0.00037806,2]
[312479271,1705915856801,-500.0,0.00037806,2]
[312479272,1705915856811,-741.87,0.00037806,2]
[312479273,1705915856821,-500.0,0.00037806,2]
[312479274,1705915856830,-500.0,0.00037806,2]
[312479275,1705915856839,-500.0,0.00037806,2]
[312479276,1705915856849,-670.21,0.00037806,2]
[312479277,1705915856858,-500.0,0.00037806,2]
[312479278,1705915856868,-500.0,0.00037806,2]
[312479279,1705915856877,-500.0,0.00037806,2]
[312479280,1705915856887,-500.0,0.00037806,2]
[312479281,1705915856897,-500.0,0.00037806,2]
[312479282,1705915856907,-500.0,0.00037806,2]
[312479283,1705915856917,-500.0,0.00037806,2]
[312479284,1705915856926,-1231.54,0.00037806,2]
[312479285,1705915856936,-500.0,0.00037806,2]
[312479286,1705915857150,-500.0,0.00037806,2]
[312479287,1705915857159,-587.05,0.00037806,2]
[312479288,1705915857169,-500.0,0.00037806,2]
[312479289,1705915857179,-500.0,0.00037806,2]
[312479290,1705915857188,-1014.29,0.00037806,2]